[Event "Late-Titled-Tuesday-Blitz-April-23-2024"]
[Site "Chess.com"]
[Date "2024.04.23"]
[Round "8"]
[White "Veleamater"]
[Black "jaramsdal"]
[Result "1-0"]
[WhiteElo "2428"]
[BlackElo "2240"]
[TimeControl "180+1"]
[EndTime "15:29:45 PDT"]
[Termination "Veleamater won on time"]

1. g3 {[%clk 0:02:12.5]} 1... Nf6 {[%clk 0:02:55.9]} 2. Bg2 {[%clk 0:02:12.1]}
2... d5 {[%clk 0:02:56.6]} 3. d3 {[%clk 0:02:11.9]} 3... e6 {[%clk 0:02:50.3]}
4. Nf3 {[%clk 0:02:11.2]} 4... Be7 {[%clk 0:02:47.5]} 5. O-O {[%clk 0:02:11.8]}
5... O-O {[%clk 0:02:47.5]} 6. h3 {[%clk 0:02:12.7]} 6... c5 {[%clk 0:02:44.7]}
7. Nc3 {[%clk 0:02:13.1]} 7... d4 {[%clk 0:02:36.8]} 8. Ne4 {[%clk 0:02:11.7]}
8... Nxe4 {[%clk 0:02:32.2]} 9. dxe4 {[%clk 0:02:12.6]} 9... Qb6 {[%clk
0:02:24]} 10. b3 {[%clk 0:01:24.1]} 10... Rd8 {[%clk 0:02:23.2]} 11. Bd2 {[%clk
0:01:21.2]} 11... a5 {[%clk 0:02:22.5]} 12. a4 {[%clk 0:01:20.6]} 12... Nc6
{[%clk 0:02:22.1]} 13. Qc1 {[%clk 0:01:20]} 13... e5 {[%clk 0:01:32.5]} 14. Ne1
{[%clk 0:01:19.8]} 14... c4 {[%clk 0:01:30.3]} 15. bxc4 {[%clk 0:01:11.9]} 15...
Be6 {[%clk 0:01:30.1]} 16. Kh2 {[%clk 0:01:10.7]} 16... Bxc4 {[%clk 0:01:29.5]}
17. Nd3 {[%clk 0:01:10.5]} 17... Rac8 {[%clk 0:01:18.6]} 18. Rb1 {[%clk
0:01:08.9]} 18... Qa6 {[%clk 0:01:17.6]} 19. f4 {[%clk 0:01:06]} 19... exf4
{[%clk 0:01:09.5]} 20. gxf4 {[%clk 0:00:58.6]} 20... Nb4 {[%clk 0:01:06.3]} 21.
Qd1 {[%clk 0:00:51.7]} 21... Qc6 {[%clk 0:00:33.7]} 22. Rg1 {[%clk 0:00:49.9]}
22... Qxa4 {[%clk 0:00:31.3]} 23. Nxb4 {[%clk 0:00:44.7]} 23... Bxb4 {[%clk
0:00:27]} 24. Bxb4 {[%clk 0:00:41.7]} 24... axb4 {[%clk 0:00:27.9]} 25. Qd2
{[%clk 0:00:41.8]} 25... Ba6 {[%clk 0:00:20.5]} 26. Rb2 {[%clk 0:00:39.1]} 26...
Qb5 {[%clk 0:00:19.9]} 27. Bf3 {[%clk 0:00:37.8]} 27... Rc3 {[%clk 0:00:17]} 28.
Rgb1 {[%clk 0:00:36.2]} 28... Qc5 {[%clk 0:00:15.8]} 29. e5 {[%clk 0:00:28.6]}
29... Rc8 {[%clk 0:00:16.2]} 30. Be4 {[%clk 0:00:28.3]} 30... g6 {[%clk
0:00:08.7]} 31. Rxb4 {[%clk 0:00:28.2]} 31... Re3 {[%clk 0:00:07.3]} 32. Bd3
{[%clk 0:00:25.7]} 32... Bxd3 {[%clk 0:00:06.4]} 33. exd3 {[%clk 0:00:25.8]}
33... Qxc2 {[%clk 0:00:06.6]} 34. Qxc2 {[%clk 0:00:21.9]} 34... Rxc2+ {[%clk
0:00:07.5]} 35. Kg1 {[%clk 0:00:21.4]} 35... Rxd3 {[%clk 0:00:07.9]} 36. Rxb7
{[%clk 0:00:17.9]} 36... Rxh3 {[%clk 0:00:07.8]} 37. Re1 {[%clk 0:00:16.4]}
37... Rg3+ {[%clk 0:00:07.2]} 38. Kh1 {[%clk 0:00:15.7]} 38... Rc6 {[%clk
0:00:03.3]} 39. Rd1 {[%clk 0:00:14]} 1-0

[Event "Late-Titled-Tuesday-Blitz-April-23-2024"]
[Site "Chess.com"]
[Date "2024.04.23"]
[Round "8"]
[White "Lennis93"]
[Black "rasmussvane"]
[Result "0-1"]
[WhiteElo "2761"]
[BlackElo "2954"]
[TimeControl "180+1"]
[EndTime "15:29:46 PDT"]
[Termination "rasmussvane won on time"]

1. d4 {[%clk 0:03:00.9]} 1... d5 {[%clk 0:02:57.9]} 2. c4 {[%clk 0:03:00.3]}
2... e6 {[%clk 0:02:56.9]} 3. Nf3 {[%clk 0:03:00.9]} 3... a6 {[%clk 0:02:56.4]}
4. cxd5 {[%clk 0:03:00.9]} 4... exd5 {[%clk 0:02:57.3]} 5. Nc3 {[%clk
0:03:00.9]} 5... Nf6 {[%clk 0:02:56]} 6. Bg5 {[%clk 0:03:01.4]} 6... Be6 {[%clk
0:02:56]} 7. Qb3 {[%clk 0:02:59.5]} 7... Nbd7 {[%clk 0:02:53.5]} 8. e3 {[%clk
0:02:53.7]} 8... Bd6 {[%clk 0:02:50.8]} 9. Bd3 {[%clk 0:02:52.5]} 9... b5 {[%clk
0:02:43.7]} 10. a4 {[%clk 0:02:49.9]} 10... b4 {[%clk 0:02:39.7]} 11. Ne2 {[%clk
0:02:42.8]} 11... c5 {[%clk 0:02:38.1]} 12. dxc5 {[%clk 0:02:43]} 12... Nxc5
{[%clk 0:02:35.3]} 13. Qd1 {[%clk 0:02:39.6]} 13... O-O {[%clk 0:02:27.8]} 14.
Ned4 {[%clk 0:02:39.1]} 14... h6 {[%clk 0:02:27.2]} 15. Bh4 {[%clk 0:02:30.4]}
15... Rc8 {[%clk 0:02:02.1]} 16. O-O {[%clk 0:02:19.3]} 16... Bd7 {[%clk
0:01:56]} 17. Bf5 {[%clk 0:02:14.8]} 17... Re8 {[%clk 0:01:36.1]} 18. Bxd7
{[%clk 0:02:09.2]} 18... Ncxd7 {[%clk 0:01:33.9]} 19. Nf5 {[%clk 0:02:09.1]}
19... Bf8 {[%clk 0:01:33.9]} 20. Bg3 {[%clk 0:02:05.5]} 20... Nc5 {[%clk
0:01:30.7]} 21. a5 {[%clk 0:01:55.5]} 21... Qd7 {[%clk 0:01:27.6]} 22. N5d4
{[%clk 0:01:54.3]} 22... Nfe4 {[%clk 0:01:25]} 23. Ne5 {[%clk 0:01:35.9]} 23...
Qb7 {[%clk 0:01:21.7]} 24. Nd3 {[%clk 0:01:31.5]} 24... Ne6 {[%clk 0:01:19.1]}
25. Be5 {[%clk 0:01:24.5]} 25... Nd6 {[%clk 0:01:17.3]} 26. Nxe6 {[%clk
0:01:06.3]} 26... fxe6 {[%clk 0:01:02.6]} 27. Qg4 {[%clk 0:00:51.6]} 27... Nc4
{[%clk 0:01:00.8]} 28. Bg3 {[%clk 0:00:40.7]} 28... e5 {[%clk 0:00:38.1]} 29.
Rfd1 {[%clk 0:00:28]} 29... b3 {[%clk 0:00:34.1]} 30. h4 {[%clk 0:00:21.9]}
30... e4 {[%clk 0:00:30.2]} 31. Nf4 {[%clk 0:00:22]} 31... Nxb2 {[%clk
0:00:30.3]} 32. Rxd5 {[%clk 0:00:21.9]} 32... Nd3 {[%clk 0:00:29.9]} 33. Rd7
{[%clk 0:00:22.1]} 33... Qb4 {[%clk 0:00:18.4]} 34. Nh5 {[%clk 0:00:19.5]} 34...
Qc3 {[%clk 0:00:18.5]} 35. Rb1 {[%clk 0:00:11.5]} 35... b2 {[%clk 0:00:17.6]}
36. Kh2 {[%clk 0:00:11.1]} 36... Rc5 {[%clk 0:00:17]} 37. Qg6 {[%clk 0:00:02.3]}
37... Re7 {[%clk 0:00:12.4]} 38. Rxe7 {[%clk 0:00:01.7]} 38... Bxe7 {[%clk
0:00:12.4]} 39. Nf4 {[%clk 0:00:01.1]} 39... Qf6 {[%clk 0:00:09.4]} 0-1

[Event "Late-Titled-Tuesday-Blitz-April-23-2024"]
[Site "Chess.com"]
[Date "2024.04.23"]
[Round "8"]
[White "RebecaJimnz"]
[Black "Nf3c5"]
[Result "0-1"]
[WhiteElo "2312"]
[BlackElo "2621"]
[TimeControl "180+1"]
[EndTime "15:29:46 PDT"]
[Termination "Nf3c5 won on time"]

1. e4 {[%clk 0:03:00.9]} 1... c5 {[%clk 0:02:59.1]} 2. Nf3 {[%clk 0:02:57.1]}
2... Nc6 {[%clk 0:02:58.2]} 3. d4 {[%clk 0:02:56.7]} 3... cxd4 {[%clk
0:02:57.6]} 4. Nxd4 {[%clk 0:02:57.6]} 4... e5 {[%clk 0:02:57.6]} 5. Nb5 {[%clk
0:02:56.2]} 5... d6 {[%clk 0:02:57.9]} 6. c4 {[%clk 0:02:55]} 6... Be6 {[%clk
0:02:53.6]} 7. N5c3 {[%clk 0:02:45.2]} 7... g6 {[%clk 0:02:45.4]} 8. Bd3 {[%clk
0:02:40.7]} 8... Bg7 {[%clk 0:02:40.9]} 9. O-O {[%clk 0:02:37.6]} 9... Nf6
{[%clk 0:02:35.4]} 10. Bg5 {[%clk 0:02:34.7]} 10... h6 {[%clk 0:02:32.3]} 11.
Bxf6 {[%clk 0:02:28.6]} 11... Bxf6 {[%clk 0:02:32]} 12. Nd5 {[%clk 0:02:29.2]}
12... Bg7 {[%clk 0:02:28.1]} 13. Nbc3 {[%clk 0:02:28.4]} 13... O-O {[%clk
0:02:10.4]} 14. b4 {[%clk 0:02:13.9]} 14... Nd4 {[%clk 0:02:03.6]} 15. a4 {[%clk
0:01:41.2]} 15... Rc8 {[%clk 0:01:58.1]} 16. Rc1 {[%clk 0:01:31.6]} 16... f5
{[%clk 0:01:53]} 17. exf5 {[%clk 0:01:06.2]} 17... gxf5 {[%clk 0:01:49.4]} 18.
f4 {[%clk 0:00:59.2]} 18... Kh8 {[%clk 0:01:25.4]} 19. Kh1 {[%clk 0:00:33.9]}
19... a5 {[%clk 0:01:22.2]} 20. b5 {[%clk 0:00:31]} 20... Rf7 {[%clk 0:01:18.5]}
21. Ne2 {[%clk 0:00:30.6]} 21... Bxd5 {[%clk 0:01:05.2]} 22. cxd5 {[%clk
0:00:29.8]} 22... Rxc1 {[%clk 0:00:50.4]} 23. Qxc1 {[%clk 0:00:25.5]} 23... e4
{[%clk 0:00:41.1]} 24. Nxd4 {[%clk 0:00:24.5]} 24... Bxd4 {[%clk 0:00:41.6]} 25.
Be2 {[%clk 0:00:20.5]} 25... Rc7 {[%clk 0:00:35.5]} 26. Qd2 {[%clk 0:00:18.6]}
26... Bb6 {[%clk 0:00:22.8]} 27. Qb2+ {[%clk 0:00:12.9]} 27... Kh7 {[%clk
0:00:18.5]} 28. h3 {[%clk 0:00:12.8]} 28... Qh8 {[%clk 0:00:16.9]} 29. Qd2
{[%clk 0:00:10.9]} 29... Qd4 {[%clk 0:00:15.6]} 30. Qe1 {[%clk 0:00:06.2]} 30...
Rg7 {[%clk 0:00:13.4]} 31. Qh4 {[%clk 0:00:03.4]} 31... Qd2 {[%clk 0:00:10.8]}
32. Qh5 {[%clk 0:00:02.8]} 32... Rg6 {[%clk 0:00:08.2]} 33. Rd1 {[%clk
0:00:02.3]} 33... Qe3 {[%clk 0:00:07.6]} 34. Kh2 {[%clk 0:00:02.5]} 34... Qxf4+
{[%clk 0:00:07.3]} 35. Kh1 {[%clk 0:00:02.8]} 35... Qg3 {[%clk 0:00:06.5]} 36.
Bf1 {[%clk 0:00:01.3]} 36... Qf2 {[%clk 0:00:05.9]} 0-1

[Event "Late-Titled-Tuesday-Blitz-April-23-2024"]
[Site "Chess.com"]
[Date "2024.04.23"]
[Round "8"]
[White "KebabJangles"]
[Black "HajiyevKanan"]
[Result "0-1"]
[WhiteElo "2264"]
[BlackElo "2617"]
[TimeControl "180+1"]
[EndTime "15:29:50 PDT"]
[Termination "HajiyevKanan won by checkmate"]

1. d4 {[%clk 0:03:00.9]} 1... d5 {[%clk 0:02:52.9]} 2. c4 {[%clk 0:03:00]} 2...
c6 {[%clk 0:02:53.3]} 3. Nf3 {[%clk 0:02:59.1]} 3... Nf6 {[%clk 0:02:53.9]} 4.
g3 {[%clk 0:02:59]} 4... a6 {[%clk 0:02:54.5]} 5. Bg2 {[%clk 0:02:59.6]} 5... g6
{[%clk 0:02:55.2]} 6. Ne5 {[%clk 0:02:55.2]} 6... Bg7 {[%clk 0:02:55]} 7. O-O
{[%clk 0:02:55]} 7... Nbd7 {[%clk 0:02:54.8]} 8. cxd5 {[%clk 0:02:54.1]} 8...
Nxe5 {[%clk 0:02:53.2]} 9. dxe5 {[%clk 0:02:53.2]} 9... Nxd5 {[%clk 0:02:53.6]}
10. f4 {[%clk 0:02:48.4]} 10... h5 {[%clk 0:02:43.7]} 11. e4 {[%clk 0:02:48]}
11... Qb6+ {[%clk 0:02:38.1]} 12. Kh1 {[%clk 0:02:47.6]} 12... Ne3 {[%clk
0:02:38.7]} 13. Bxe3 {[%clk 0:02:46.8]} 13... Qxe3 {[%clk 0:02:39.6]} 14. Qd2
{[%clk 0:02:45.4]} 14... Qa7 {[%clk 0:02:22.1]} 15. h4 {[%clk 0:02:43.5]} 15...
Bg4 {[%clk 0:02:21.4]} 16. Nc3 {[%clk 0:02:39.3]} 16... Rd8 {[%clk 0:02:21.7]}
17. Qf2 {[%clk 0:02:38.8]} 17... Qxf2 {[%clk 0:02:08.3]} 18. Rxf2 {[%clk
0:02:39.7]} 18... Rd3 {[%clk 0:02:07.4]} 19. Kh2 {[%clk 0:02:38.5]} 19... O-O
{[%clk 0:01:59.8]} 20. Bh3 {[%clk 0:02:38.1]} 20... Rfd8 {[%clk 0:01:47.9]} 21.
Bxg4 {[%clk 0:02:36.2]} 21... hxg4 {[%clk 0:01:48.8]} 22. Rc1 {[%clk 0:02:31.4]}
22... e6 {[%clk 0:01:29.7]} 23. Kg2 {[%clk 0:02:26.9]} 23... Bf8 {[%clk
0:01:29.3]} 24. Rcc2 {[%clk 0:02:22.5]} 24... Bc5 {[%clk 0:01:29.1]} 25. Rfe2
{[%clk 0:02:20.7]} 25... Bd4 {[%clk 0:01:17.7]} 26. Na4 {[%clk 0:02:08.8]} 26...
b5 {[%clk 0:01:01.4]} 27. Nc5 {[%clk 0:02:06.9]} 27... Bxc5 {[%clk 0:01:02]} 28.
Rxc5 {[%clk 0:02:07.5]} 28... Rd2 {[%clk 0:01:02.7]} 29. Rc2 {[%clk 0:02:07.3]}
29... Rxe2+ {[%clk 0:01:03.3]} 30. Rxe2 {[%clk 0:02:07.1]} 30... c5 {[%clk
0:01:02.3]} 31. Kf2 {[%clk 0:02:06.5]} 31... c4 {[%clk 0:01:02.4]} 32. Rc2
{[%clk 0:02:02.6]} 32... Rd3 {[%clk 0:01:01]} 33. a3 {[%clk 0:01:59.3]} 33...
Kf8 {[%clk 0:00:59.8]} 34. Kg2 {[%clk 0:01:50.4]} 34... Ke7 {[%clk 0:00:56.2]}
35. Re2 {[%clk 0:01:44.9]} 35... a5 {[%clk 0:00:46.3]} 36. Rc2 {[%clk
0:01:44.1]} 36... Rd4 {[%clk 0:00:34.4]} 37. Kf2 {[%clk 0:01:42.3]} 37... Rxe4
{[%clk 0:00:33.9]} 38. Rd2 {[%clk 0:01:39.9]} 38... b4 {[%clk 0:00:33.4]} 39.
axb4 {[%clk 0:01:39.6]} 39... axb4 {[%clk 0:00:34.3]} 40. Rd6 {[%clk 0:01:39.8]}
40... b3 {[%clk 0:00:21.5]} 41. Rd2 {[%clk 0:01:39]} 41... c3 {[%clk 0:00:11.9]}
42. bxc3 {[%clk 0:01:39.2]} 42... Rc4 {[%clk 0:00:12.6]} 43. Rd3 {[%clk
0:01:33]} 43... b2 {[%clk 0:00:12.6]} 44. Rd1 {[%clk 0:01:33.2]} 44... Rxc3
{[%clk 0:00:12.7]} 45. Rb1 {[%clk 0:01:33.8]} 45... Rb3 {[%clk 0:00:12.1]} 46.
Kg2 {[%clk 0:01:26.4]} 46... Kd7 {[%clk 0:00:11.9]} 47. Kf2 {[%clk 0:01:19.3]}
47... Kc6 {[%clk 0:00:12.2]} 48. Ke2 {[%clk 0:01:19.3]} 48... Rxg3 {[%clk
0:00:12.3]} 49. Kd2 {[%clk 0:01:19.4]} 49... Rb3 {[%clk 0:00:10.2]} 50. Kc2
{[%clk 0:01:19.6]} 50... Rb4 {[%clk 0:00:10.7]} 51. Kc3 {[%clk 0:01:17.4]} 51...
Kc5 {[%clk 0:00:09.5]} 52. Kd3 {[%clk 0:01:09.2]} 52... Kd5 {[%clk 0:00:07.9]}
53. Kc3 {[%clk 0:01:06.3]} 53... Rb7 {[%clk 0:00:07.7]} 54. Rd1+ {[%clk
0:01:05.7]} 54... Ke4 {[%clk 0:00:07.8]} 55. Rb1 {[%clk 0:01:02.5]} 55... Kxf4
{[%clk 0:00:07.7]} 56. Kd4 {[%clk 0:01:01.7]} 56... g3 {[%clk 0:00:07.4]} 57.
Kc5 {[%clk 0:01:00.6]} 57... g2 {[%clk 0:00:07]} 58. Kc6 {[%clk 0:01:01.5]}
58... Rb3 {[%clk 0:00:06.6]} 59. Kd7 {[%clk 0:01:01.4]} 59... Kxe5 {[%clk
0:00:06.1]} 60. Ke7 {[%clk 0:01:01.1]} 60... f5 {[%clk 0:00:06.1]} 61. Kf7
{[%clk 0:01:00.9]} 61... g1=Q {[%clk 0:00:05.8]} 62. Rxg1 {[%clk 0:01:00]} 62...
b1=Q {[%clk 0:00:06.7]} 63. Rxg6 {[%clk 0:01:00.5]} 63... Rb7+ {[%clk
0:00:05.6]} 64. Kg8 {[%clk 0:01:00.5]} 64... Qb5 {[%clk 0:00:04.8]} 65. Kh8
{[%clk 0:00:59]} 65... Qe8+ {[%clk 0:00:04.8]} 66. Rg8 {[%clk 0:00:59.5]} 66...
Qh5# {[%clk 0:00:05.3]} 0-1

[Event "Late-Titled-Tuesday-Blitz-April-23-2024"]
[Site "Chess.com"]
[Date "2024.04.23"]
[Round "8"]
[White "LeninGuerra"]
[Black "rynos0411"]
[Result "1-0"]
[WhiteElo "2674"]
[BlackElo "2509"]
[TimeControl "180+1"]
[EndTime "15:29:55 PDT"]
[Termination "LeninGuerra won by resignation"]

1. e4 {[%clk 0:03:00.9]} 1... c5 {[%clk 0:02:59.6]} 2. Nf3 {[%clk 0:03:00.7]}
2... d6 {[%clk 0:03:00.2]} 3. b4 {[%clk 0:03:00.8]} 3... cxb4 {[%clk 0:02:52.8]}
4. a3 {[%clk 0:03:01]} 4... bxa3 {[%clk 0:02:52.6]} 5. Bxa3 {[%clk 0:03:01.9]}
5... Nf6 {[%clk 0:02:48.3]} 6. Bd3 {[%clk 0:03:02.1]} 6... g6 {[%clk 0:02:47.6]}
7. O-O {[%clk 0:03:02.2]} 7... Bg7 {[%clk 0:02:48.2]} 8. c3 {[%clk 0:03:02.8]}
8... O-O {[%clk 0:02:48.6]} 9. Bc2 {[%clk 0:03:03]} 9... Nc6 {[%clk 0:02:46]}
10. d4 {[%clk 0:03:03.1]} 10... d5 {[%clk 0:02:46.6]} 11. e5 {[%clk 0:03:02.8]}
11... Ne4 {[%clk 0:02:42.7]} 12. Re1 {[%clk 0:03:02]} 12... f6 {[%clk
0:01:58.6]} 13. Bxe4 {[%clk 0:02:40.8]} 13... dxe4 {[%clk 0:01:58.2]} 14. Rxe4
{[%clk 0:02:41.1]} 14... fxe5 {[%clk 0:01:58.1]} 15. d5 {[%clk 0:02:41.4]} 15...
Bf5 {[%clk 0:01:54.6]} 16. Ra4 {[%clk 0:02:34.8]} 16... e4 {[%clk 0:01:46.3]}
17. Nh4 {[%clk 0:02:31]} 17... Ne5 {[%clk 0:01:41.2]} 18. Nxf5 {[%clk
0:02:28.5]} 18... gxf5 {[%clk 0:01:41.2]} 19. Qb3 {[%clk 0:02:23.8]} 19... Kh8
{[%clk 0:01:36]} 20. Nd2 {[%clk 0:02:23.8]} 20... b6 {[%clk 0:01:34.6]} 21. Bb2
{[%clk 0:02:21.6]} 21... Nd3 {[%clk 0:01:32.9]} 22. Rxa7 {[%clk 0:01:58.2]}
22... Rxa7 {[%clk 0:01:23.5]} 23. Rxa7 {[%clk 0:01:59.1]} 23... Nxb2 {[%clk
0:01:23.7]} 24. Qxb2 {[%clk 0:01:59.5]} 24... Qxd5 {[%clk 0:01:24]} 25. Rxe7
{[%clk 0:01:59.7]} 25... Rd8 {[%clk 0:01:24.1]} 26. Nf1 {[%clk 0:01:59.7]} 26...
Qc5 {[%clk 0:01:21.4]} 27. Rb7 {[%clk 0:01:37.1]} 27... Bxc3 {[%clk 0:00:30.9]}
28. Qxb6 {[%clk 0:01:36]} 28... Qxb6 {[%clk 0:00:31.3]} 29. Rxb6 {[%clk
0:01:35.7]} 29... Kg7 {[%clk 0:00:31.9]} 30. g3 {[%clk 0:01:34.1]} 30... Bd4
{[%clk 0:00:30.5]} 31. Rb7+ {[%clk 0:01:33.3]} 31... Kg6 {[%clk 0:00:30.5]} 32.
Kg2 {[%clk 0:01:32]} 32... Bc5 {[%clk 0:00:30.5]} 33. Rc7 {[%clk 0:01:30.4]}
33... Rd5 {[%clk 0:00:30.9]} 34. h4 {[%clk 0:01:26]} 34... h5 {[%clk 0:00:27]}
35. Rc6+ {[%clk 0:01:25.7]} 35... Kg7 {[%clk 0:00:27]} 36. Re6 {[%clk
0:01:08.8]} 36... Bd4 {[%clk 0:00:18.7]} 37. g4 {[%clk 0:00:45.8]} 37... hxg4
{[%clk 0:00:18.4]} 38. Ng3 {[%clk 0:00:45.8]} 38... Kf7 {[%clk 0:00:14.6]} 39.
Rc6 {[%clk 0:00:45]} 39... f4 {[%clk 0:00:09.6]} 40. Nxe4 {[%clk 0:00:43.1]}
40... Be5 {[%clk 0:00:09.5]} 41. Ng5+ {[%clk 0:00:42.1]} 41... Kg7 {[%clk
0:00:10.1]} 42. Rc1 {[%clk 0:00:20.8]} 42... f3+ {[%clk 0:00:10.1]} 43. Kf1
{[%clk 0:00:21]} 43... Bf4 {[%clk 0:00:09.3]} 44. Ne6+ {[%clk 0:00:21.1]} 44...
Kh6 {[%clk 0:00:08.8]} 45. Nxf4 {[%clk 0:00:21.7]} 45... Rf5 {[%clk 0:00:09.2]}
46. Rc4 {[%clk 0:00:21.3]} 46... Ra5 {[%clk 0:00:08.3]} 47. Ke1 {[%clk
0:00:21.5]} 47... Ra2 {[%clk 0:00:07.8]} 48. Rc6+ {[%clk 0:00:18.2]} 48... Kg7
{[%clk 0:00:08.1]} 49. h5 {[%clk 0:00:18.6]} 49... Ra4 {[%clk 0:00:07.6]} 50.
Rg6+ {[%clk 0:00:18.7]} 50... Kh7 {[%clk 0:00:08]} 51. Rxg4 {[%clk 0:00:19.2]}
1-0

[Event "Late-Titled-Tuesday-Blitz-April-23-2024"]
[Site "Chess.com"]
[Date "2024.04.23"]
[Round "8"]
[White "nihalsarin"]
[Black "GMBenjaminBok"]
[Result "1-0"]
[WhiteElo "3144"]
[BlackElo "3040"]
[TimeControl "180+1"]
[EndTime "15:30:00 PDT"]
[Termination "nihalsarin won by resignation"]

1. e4 {[%clk 0:02:53.6]} 1... c5 {[%clk 0:02:57.7]} 2. Nc3 {[%clk 0:02:51.3]}
2... d6 {[%clk 0:02:57.8]} 3. g4 {[%clk 0:02:42.3]} 3... Nc6 {[%clk 0:02:55.3]}
4. Bg2 {[%clk 0:02:41.7]} 4... g6 {[%clk 0:02:44.4]} 5. d3 {[%clk 0:02:32.2]}
5... Bg7 {[%clk 0:02:43.1]} 6. h4 {[%clk 0:02:32.8]} 6... h5 {[%clk 0:02:29.1]}
7. g5 {[%clk 0:02:27.5]} 7... Rb8 {[%clk 0:02:28.4]} 8. a4 {[%clk 0:02:20.3]}
8... e6 {[%clk 0:02:15]} 9. Nge2 {[%clk 0:02:16]} 9... Nge7 {[%clk 0:02:14.2]}
10. O-O {[%clk 0:02:15.3]} 10... a6 {[%clk 0:02:11.6]} 11. Be3 {[%clk
0:02:14.8]} 11... b5 {[%clk 0:02:09.3]} 12. axb5 {[%clk 0:02:13.6]} 12... axb5
{[%clk 0:02:10.2]} 13. d4 {[%clk 0:02:08.3]} 13... b4 {[%clk 0:02:03.9]} 14. Na4
{[%clk 0:02:08.3]} 14... cxd4 {[%clk 0:02:00.5]} 15. Nxd4 {[%clk 0:02:09.2]}
15... Ne5 {[%clk 0:01:56.2]} 16. Nf3 {[%clk 0:02:00.1]} 16... N7c6 {[%clk
0:01:28.8]} 17. Nxe5 {[%clk 0:01:55.2]} 17... Nxe5 {[%clk 0:01:29.7]} 18. Bd4
{[%clk 0:01:54.1]} 18... O-O {[%clk 0:01:27.5]} 19. b3 {[%clk 0:01:38.3]} 19...
Qc7 {[%clk 0:01:21.2]} 20. Nb2 {[%clk 0:01:34.5]} 20... Bd7 {[%clk 0:01:18.8]}
21. Ra7 {[%clk 0:01:29.8]} 21... Rb7 {[%clk 0:01:11.5]} 22. Rxb7 {[%clk
0:01:29.2]} 22... Qxb7 {[%clk 0:01:12.4]} 23. f4 {[%clk 0:00:44.4]} 23... Ng4
{[%clk 0:01:04.5]} 24. Nc4 {[%clk 0:00:45.1]} 24... Qc7 {[%clk 0:00:16.9]} 25.
Bb6 {[%clk 0:00:23]} 25... Qb8 {[%clk 0:00:09.4]} 26. Qxd6 {[%clk 0:00:23.3]}
26... Bb5 {[%clk 0:00:09.1]} 27. e5 {[%clk 0:00:20.6]} 27... Rc8 {[%clk
0:00:02.1]} 28. Qxb8 {[%clk 0:00:15.8]} 28... Rxb8 {[%clk 0:00:03]} 29. Ba7
{[%clk 0:00:11.4]} 29... Rc8 {[%clk 0:00:02.9]} 30. Nd6 {[%clk 0:00:10.8]} 30...
Rxc2 {[%clk 0:00:02.5]} 31. Nxb5 {[%clk 0:00:11]} 31... Ne3 {[%clk 0:00:02.7]}
32. Bxe3 {[%clk 0:00:10.8]} 32... Bf8 {[%clk 0:00:02.2]} 33. Nd4 {[%clk
0:00:10.7]} 33... Rc3 {[%clk 0:00:02.3]} 34. Rf3 {[%clk 0:00:10.1]} 34... Bc5
{[%clk 0:00:02.4]} 35. Kf2 {[%clk 0:00:10.9]} 35... Rd3 {[%clk 0:00:02.3]} 36.
Ne2 {[%clk 0:00:10.9]} 36... Bxe3+ {[%clk 0:00:01.3]} 37. Rxe3 {[%clk
0:00:11.1]} 37... Rd2 {[%clk 0:00:02.2]} 38. Re4 {[%clk 0:00:11.4]} 38... Rb2
{[%clk 0:00:03.1]} 39. Rxb4 {[%clk 0:00:11.8]} 39... Kg7 {[%clk 0:00:03.4]} 40.
Rb7 {[%clk 0:00:12.1]} 40... Rb1 {[%clk 0:00:03.7]} 41. Bc6 {[%clk 0:00:12.7]}
41... Rb2 {[%clk 0:00:04.6]} 42. Be8 {[%clk 0:00:12.7]} 42... Kf8 {[%clk
0:00:05.2]} 43. Bxf7 {[%clk 0:00:12.9]} 43... Kg7 {[%clk 0:00:05.3]} 44. Bxe6+
{[%clk 0:00:13.3]} 44... Kf8 {[%clk 0:00:05.7]} 45. f5 {[%clk 0:00:13.3]} 45...
gxf5 {[%clk 0:00:05.5]} 46. g6 {[%clk 0:00:14.2]} 46... Ke8 {[%clk 0:00:06]} 47.
g7 {[%clk 0:00:14.3]} 47... Rxe2+ {[%clk 0:00:06.5]} 48. Kxe2 {[%clk 0:00:14.9]}
1-0

[Event "Late-Titled-Tuesday-Blitz-April-23-2024"]
[Site "Chess.com"]
[Date "2024.04.23"]
[Round "8"]
[White "Sandstad"]
[Black "MarlonJodar"]
[Result "0-1"]
[WhiteElo "2438"]
[BlackElo "2276"]
[TimeControl "180+1"]
[EndTime "15:30:00 PDT"]
[Termination "MarlonJodar won by resignation"]

1. d4 {[%clk 0:03:00.9]} 1... d5 {[%clk 0:02:58.6]} 2. c4 {[%clk 0:03:00.9]}
2... c6 {[%clk 0:02:58.3]} 3. e3 {[%clk 0:02:58.7]} 3... Nf6 {[%clk 0:02:58]} 4.
Nc3 {[%clk 0:02:58.9]} 4... e6 {[%clk 0:02:58.2]} 5. Nf3 {[%clk 0:02:57.6]} 5...
Nbd7 {[%clk 0:02:58.5]} 6. Qc2 {[%clk 0:02:57]} 6... Bd6 {[%clk 0:02:57.9]} 7.
a3 {[%clk 0:02:56.8]} 7... O-O {[%clk 0:02:56.4]} 8. b4 {[%clk 0:02:56]} 8... b6
{[%clk 0:02:55.8]} 9. Bb2 {[%clk 0:02:55.9]} 9... Bb7 {[%clk 0:02:55.8]} 10. Rd1
{[%clk 0:02:55.8]} 10... Rc8 {[%clk 0:02:55.5]} 11. c5 {[%clk 0:02:53.9]} 11...
Bb8 {[%clk 0:02:49.8]} 12. Be2 {[%clk 0:02:39.9]} 12... e5 {[%clk 0:02:42.6]}
13. O-O {[%clk 0:02:37]} 13... e4 {[%clk 0:02:40.6]} 14. Nd2 {[%clk 0:02:35.7]}
14... Re8 {[%clk 0:02:40.3]} 15. Rde1 {[%clk 0:02:26.4]} 15... Nf8 {[%clk
0:02:34.8]} 16. Nd1 {[%clk 0:02:15.9]} 16... Ng6 {[%clk 0:02:30.4]} 17. f4
{[%clk 0:02:14.7]} 17... Qd7 {[%clk 0:02:08.4]} 18. h3 {[%clk 0:02:04.3]} 18...
h5 {[%clk 0:01:59.4]} 19. Kh2 {[%clk 0:01:41.6]} 19... Qf5 {[%clk 0:01:49.6]}
20. g3 {[%clk 0:01:37.8]} 20... Rc7 {[%clk 0:01:30.4]} 21. Rf2 {[%clk
0:01:36.4]} 21... Bc8 {[%clk 0:01:27.5]} 22. Bf1 {[%clk 0:01:36.4]} 22... h4
{[%clk 0:01:09.9]} 23. g4 {[%clk 0:01:34.7]} 23... Nxg4+ {[%clk 0:01:09.5]} 24.
hxg4 {[%clk 0:01:35.6]} 24... Qxg4 {[%clk 0:01:09.9]} 25. Rg2 {[%clk 0:01:29.2]}
25... Qh3+ {[%clk 0:00:54.4]} 26. Kg1 {[%clk 0:01:28.7]} 26... Rce7 {[%clk
0:00:33]} 27. Nf2 {[%clk 0:01:28.2]} 27... Qd7 {[%clk 0:00:29]} 28. Nb3 {[%clk
0:01:21.1]} 28... Bxf4 {[%clk 0:00:23.3]} 29. exf4 {[%clk 0:01:19.7]} 29... Nxf4
{[%clk 0:00:23.6]} 30. Rg4 {[%clk 0:01:13.7]} 30... e3 {[%clk 0:00:17.2]} 31.
Rxe3 {[%clk 0:01:02.1]} 31... Rxe3 {[%clk 0:00:16.4]} 32. Rxf4 {[%clk
0:01:01.5]} 32... Rg3+ {[%clk 0:00:16.5]} 33. Kh1 {[%clk 0:00:58.1]} 33... Ree3
{[%clk 0:00:16.1]} 34. Rxh4 {[%clk 0:00:56.3]} 34... Rxb3 {[%clk 0:00:15.7]} 35.
Bc1 {[%clk 0:00:50.8]} 35... Qf5 {[%clk 0:00:13.5]} 36. Qxf5 {[%clk 0:00:35]}
36... Bxf5 {[%clk 0:00:14.4]} 37. Bf4 {[%clk 0:00:32.5]} 37... Rgf3 {[%clk
0:00:14]} 38. Kg2 {[%clk 0:00:25.5]} 38... f6 {[%clk 0:00:11.6]} 39. Bd6 {[%clk
0:00:20.6]} 39... g5 {[%clk 0:00:10.9]} 40. Rh2 {[%clk 0:00:17.5]} 40... Rfc3
{[%clk 0:00:09.3]} 41. Be2 {[%clk 0:00:15.6]} 41... Rb2 {[%clk 0:00:08.9]} 42.
Kf1 {[%clk 0:00:14.9]} 42... Rc1+ {[%clk 0:00:08.7]} 43. Bd1 {[%clk 0:00:12.5]}
43... Bc2 {[%clk 0:00:07.5]} 44. Ke1 {[%clk 0:00:07.7]} 44... Bxd1 {[%clk
0:00:07.1]} 45. Nxd1 {[%clk 0:00:07.8]} 45... Rxh2 {[%clk 0:00:06.9]} 0-1